bitfinex-derivatives/quotes_SOLF0:USTF0_20260202
["timestamp","ask_amount","ask_price","bid_price","bid_amount"]
[1770002270050,9.1116,98.879,98.793,4.68925638]
[1770002270452,9.1116,98.879,98.795,4.68925638]
[1770002270856,150.8485,98.879,98.795,4.68925638]
[1770002271043,9.1129,98.865,98.795,4.68925638]
[1770002271243,141.7369,98.879,98.795,4.68925638]
[1770002271455,141.7534,98.867,98.795,4.68925638]
[1770002271643,141.7184,98.892,98.795,4.68925638]
[1770002271844,141.7211,98.89,98.798,4.53814008]
[1770002272448,141.7069,98.9,98.802,4.53814008]
[1770002273154,150.8179,98.899,98.802,4.53814008]
[1770002273447,141.7249,98.887,98.802,4.53814008]
[1770002273847,9.1109,98.887,98.802,4.53814008]
[1770002274053,150.836,98.887,98.802,4.53814008]
[1770002274549,141.7187,98.891,98.802,4.53814008]
[1770002274946,150.8358,98.887,98.802,4.53814008]
[1770002275143,141.7359,98.879,98.802,4.53814008]
[1770002275343,141.742,98.875,98.802,4.53814008]
[1770002276457,141.7136,98.895,98.802,4.53814008]
[1770002276751,141.7275,98.885,98.802,4.53814008]
[1770002276949,8.18925626,98.92,98.802,4.53814008]
[1770002276950,150.8477,98.879,98.802,4.53814008]
[1770002277153,141.7239,98.888,98.802,4.53814008]
[1770002277355,141.7244,98.887,98.802,4.53814008]
[1770002277653,141.7102,98.897,98.802,4.53814008]
[1770002277847,8.18925626,98.92,98.824,141.8141]
[1770002278047,150.7822,98.922,98.841,4.55410048]
[1770002278755,9.1088,98.909,98.841,4.55410048]
[1770002280655,9.1076,98.923,98.841,4.55410048]
[1770002280851,141.636,98.949,98.845,4.57416545]
[1770002281052,141.6575,98.934,98.845,4.57416545]
[1770002281349,141.7223,98.889,98.8,8.18925626]
[1770002281649,8.18925626,98.91,98.801,9.1187]
[1770002281650,9.1122,98.872,98.801,9.1187]
[1770002281851,141.6907,98.911,98.814,4.51115235]
[1770002282155,141.6932,98.909,98.814,4.51115235]
[1770002282351,141.6571,98.934,98.84,8.18925626]
[1770002282555,141.6085,98.968,98.84,8.18925626]
[1770002282556,141.6252,98.957,98.853,4.51115235]
[1770002282850,141.6813,98.917,98.84,8.18925626]
[1770002283049,141.6837,98.916,98.83,4.51115235]
[1770002283243,141.6276,98.955,98.798,403.48]
[1770002283244,141.7183,98.892,98.803,4.54091856]
[1770002283450,141.6925,98.91,98.806,4.54091856]
[1770002283644,141.7012,98.904,98.806,4.54091856]
[1770002283849,9.1109,98.887,98.811,9.1178]
[1770002284352,141.7012,98.904,98.816,9.1173]
[1770002284353,9.1107,98.888,98.816,9.1173]
[1770002284852,9.1096,98.9,98.82,4.54091856]
[1770002285054,141.6703,98.925,98.831,4.54091856]
[1770002285248,141.6706,98.925,98.831,4.54091856]
[1770002285451,9.1045,98.955,98.872,4.54326753]
[1770002285656,141.5906,98.981,98.881,4.54326753]
[1770002285851,141.5403,99.016,98.896,4.54326753]
[1770002285852,141.5886,98.982,98.896,4.54326753]
[1770002286050,9.1023,98.979,98.901,9.1095]
[1770002286256,141.6077,98.969,98.87,8.18925626]
[1770002286551,141.5813,98.987,98.87,8.18925626]
[1770002286552,141.5857,98.984,98.88,4.54326753]
[1770002286752,141.5813,98.987,98.88,4.54326753]
[1770002286958,141.5827,98.986,98.89,8.18925626]
[1770002287147,141.5841,98.985,98.89,8.18925626]
[1770002287346,141.5598,99.002,98.897,4.61754536]
[1770002287547,141.5699,98.995,98.898,141.7075]
[1770002287751,141.5092,99.038,98.932,4.61791979]
[1770002288058,141.4999,99.044,98.941,4.61791979]
[1770002288250,141.4999,99.044,98.94,149.83625626]
[1770002288251,141.4999,99.044,98.943,4.61791979]
[1770002288445,141.4858,99.054,98.96,8.18925626]
[1770002288646,141.5011,99.043,98.96,8.18925626]
[1770002288847,9.0977,99.03,98.96,8.18925626]
[1770002289048,9.0977,99.03,98.946,13.72321979]
[1770002289259,141.4941,99.048,98.947,4.61507854]
[1770002289553,149.63865626,99.08,98.968,4.61507854]
[1770002289746,141.4662,99.068,98.968,4.61507854]
[1770002289951,9.0951,99.058,98.969,9.1032]
[1770002290154,141.4906,99.051,98.968,4.61507854]
[1770002290453,141.4371,99.088,98.981,4.61507854]
[1770002290657,141.4592,99.073,98.988,4.61507854]
[1770002290857,141.4804,99.058,98.961,4.61507854]
[1770002291253,9.0965,99.043,98.961,4.61507854]
[1770002292152,141.5005,99.044,98.94,12.8179936]
[1770002292353,141.4864,99.054,98.96,12.8179936]
[1770002292754,9.0964,99.044,98.961,9.1039]
[1770002292949,141.517,99.032,98.96,4.62873734]
[1770002293154,141.4468,99.081,98.972,4.61891531]
[1770002293355,141.4848,99.055,98.972,4.61891531]
[1770002293857,141.4327,99.091,98.96,8.18925626]
[1770002293858,9.0943,99.067,98.981,9.1021]
[1770002294856,141.477,99.06,98.96,8.18925626]
[1770002295055,141.4814,99.057,98.96,8.18925626]
[1770002295351,141.4742,99.062,98.96,8.18925626]
[1770002295352,141.4742,99.062,98.962,4.74893429]
[1770002295758,141.4487,99.08,98.98,141.5907]
[1770002296158,9.0935,99.075,98.99,4.74893429]
[1770002296353,141.4274,99.095,98.993,141.5724]
[1770002296559,141.4033,99.112,99.003,4.74893429]
[1770002296855,9.0907,99.106,99.012,4.74893429]
[1770002297057,150.5021,99.106,99.012,4.74893429]
[1770002297459,150.5216,99.093,99.0,8.18925626]
[1770002297654,141.4322,99.092,98.989,4.75348778]
[1770002297857,9.0933,99.078,98.989,13.85488778]
[1770002298359,141.4402,99.086,98.989,13.85488778]
[1770002298360,141.4612,99.071,98.989,4.75348778]
[1770002298560,150.5598,99.068,98.989,4.75348778]
[1770002299059,9.0953,99.056,98.968,403.14]
[1770002299264,141.4936,99.049,98.966,4.75348778]
[1770002299454,141.5212,99.029,98.944,403.1]
[1770002299657,141.5104,99.037,98.944,403.1]
[1770002299856,9.0974,99.033,98.947,4.76406572]
[1770002300358,141.5339,99.021,98.947,4.76406572]
[1770002300560,141.5277,99.025,98.923,4.76406572]
[1770002301053,8.18925626,99.04,98.92,8.18925626]
[1770002301054,9.0994,99.012,98.926,4.76406572]
[1770002301560,9.0994,99.012,98.932,4.76485853]
[1770002302356,141.5817,98.987,98.903,4.76485853]
[1770002302555,141.5977,98.976,98.88,411.26925626]
[1770002302757,9.1037,98.965,98.882,9.1112]
[1770002302956,141.6203,98.96,98.88,403.08]
[1770002303155,141.6203,98.96,98.835,141.7985]
[1770002303156,141.6453,98.943,98.844,4.75881589]
[1770002303356,141.6793,98.919,98.844,4.75881589]
[1770002303559,141.674,98.923,98.844,4.75881589]
[1770002303758,141.7004,98.904,98.819,4.75881589]
[1770002303961,141.6915,98.91,98.819,4.75881589]
[1770002304363,141.7381,98.878,98.791,4.75881589]
[1770002304663,141.7361,98.879,98.791,4.75881589]
[1770002304853,8.18925626,98.9,98.78,150.06645626]
[1770002304854,8.18925626,98.9,98.807,4.75881589]
[1770002305054,141.6663,98.928,98.825,4.75881589]
[1770002305253,9.1068,98.931,98.837,9.1153]
[1770002305463,141.6672,98.927,98.837,9.1153]
[1770002305661,8.18925626,98.94,98.834,4.76312904]
[1770002305662,141.6591,98.933,98.834,4.76312904]
[1770002305860,8.18925626,98.94,98.84,149.98025626]
[1770002306067,141.6767,98.921,98.836,4.76312904]
[1770002306661,9.1077,98.921,98.836,4.76312904]
[1770002306967,141.6769,98.921,98.836,4.76312904]
[1770002307164,9.1077,98.921,98.836,4.76312904]
[1770002307360,8.18925626,98.94,98.845,4.82732503]
[1770002307667,141.6298,98.953,98.861,4.82732503]
[1770002307868,150.7346,98.953,98.863,9.113]
[1770002308469,150.7623,98.935,98.845,403.2]
[1770002308866,150.7623,98.935,98.834,146.62732503]
[1770002308867,9.1076,98.922,98.836,9.1155]
[1770002309066,141.6372,98.948,98.852,146.60112503]
[1770002309269,141.6242,98.957,98.865,141.7556]
[1770002309568,141.6446,98.943,98.855,4.82979821]
[1770002309769,141.6323,98.952,98.859,141.7633]
[1770002310070,141.6427,98.944,98.855,4.82979821]
[1770002310466,141.6286,98.954,98.857,146.59619821]
[1770002310667,141.6333,98.951,98.858,4.82979821]
[1770002310973,141.6333,98.951,98.859,141.7643]
[1770002311670,9.1062,98.938,98.859,9.1133]
[1770002312073,9.1048,98.953,98.865,9.1128]
[1770002312471,8.18925626,98.98,98.873,141.744]
[1770002312672,141.6101,98.967,98.879,9.1115]
[1770002313077,9.1046,98.955,98.879,9.1115]
[1770002313369,9.1046,98.955,98.873,4.83237589]
[1770002313765,141.6413,98.945,98.86,8.18925626]
[1770002313971,141.643,98.944,98.852,4.83256637]
[1770002314172,141.6464,98.942,98.852,4.83256637]
[1770002314674,141.6464,98.942,98.859,4.83256637]
[1770002314675,9.1058,98.942,98.859,4.83256637]
[1770002314871,141.6503,98.939,98.863,4.83256637]
[1770002315171,141.6503,98.939,98.817,141.8242]
[1770002315172,9.1117,98.877,98.797,9.1191]
[1770002315571,9.1127,98.867,98.785,4.8313946]
[1770002315767,150.8659,98.867,98.785,4.8313946]
[1770002315970,8.18925626,98.88,98.792,141.8597]
[1770002316171,8.18925626,98.88,98.763,141.9011]
[1770002316172,141.7651,98.859,98.764,4.8313946]
[1770002316370,141.752,98.868,98.77,4.8313946]
[1770002316569,141.7445,98.873,98.772,4.8313946]
[1770002316766,9.1146,98.846,98.772,4.8313946]
[1770002316966,8.18925626,98.88,98.751,141.919]
[1770002316967,141.7119,98.896,98.797,4.8313946]
[1770002317172,150.8272,98.893,98.799,4.83421865]
[1770002317371,141.7118,98.896,98.816,4.83421865]
[1770002317875,141.687,98.913,98.821,4.83416163]
[1770002318075,141.7014,98.903,98.821,4.83416163]
[1770002318264,403.36,98.924,98.79,13.02341789]
[1770002318265,141.7384,98.878,98.79,13.02341789]
[1770002318470,141.7229,98.888,98.791,4.83416163]
[1770002318674,9.1122,98.872,98.791,4.83416163]
[1770002318875,141.7302,98.883,98.791,4.83416163]
[1770002319363,150.8414,98.883,98.791,4.83416163]
[1770002319569,141.7577,98.864,98.778,9.1208]
[1770002319766,141.759,98.863,98.771,4.82312082]
[1770002319968,9.1143,98.85,98.771,4.82312082]
[1770002320371,141.7806,98.848,98.771,4.82312082]
[1770002320678,150.9292,98.826,98.733,9.1249]
[1770002321175,9.1178,98.812,98.719,155.91362082]
[1770002321370,9.1178,98.812,98.719,146.78732082]
[1770002321571,141.7999,98.835,98.73,8.18925626]
[1770002321770,141.7972,98.837,98.746,14.00651264]
[1770002321966,141.7972,98.837,98.747,4.88281264]
[1770002322270,141.8275,98.816,98.722,4.88281264]
[1770002322470,141.7991,98.835,98.738,141.9369]
[1770002322671,141.8034,98.832,98.73,8.18925626]
[1770002322875,9.1165,98.825,98.734,9.1249]
[1770002323074,141.8193,98.821,98.734,9.1249]
[1770002323271,8.18925626,98.82,98.697,141.9962]
[1770002323578,11.57607356,99.047,98.636,426.2546]
[1770002323579,141.9141,98.755,98.662,6.72619177]
[1770002323772,8.18925626,98.76,98.665,6.72619177]
[1770002323978,141.8982,98.766,98.67,6.72619177]
[1770002324170,141.9125,98.756,98.67,6.72619177]
[1770002324371,141.9476,98.732,98.645,6.72619177]
[1770002324580,141.9967,98.698,98.611,6.72619177]
[1770002324878,141.9679,98.718,98.631,6.72619177]
[1770002325083,141.9679,98.718,98.594,403.58]
[1770002325084,142.0607,98.653,98.601,1.76363715]
[1770002325270,142.0849,98.637,98.55,6.72619177]
[1770002325575,142.0607,98.653,98.408,427.2394]
[1770002325576,142.1406,98.598,98.482,142.306]
[1770002325769,9.1353,98.622,98.472,6.8365075]
[1770002325770,142.2167,98.545,98.472,6.8365075]
[1770002325967,142.2167,98.545,98.424,142.3906]
[1770002325968,1.76,98.55,98.45,142.353]
[1770002326168,142.2398,98.529,98.424,150.61685068]
[1770002326467,142.2114,98.549,98.447,142.3568]
[1770002326671,1.76,98.55,98.448,8.22625068]
[1770002326672,142.227,98.538,98.448,8.22625068]
[1770002326869,1.76,98.55,98.466,142.33]
[1770002327071,1.76,98.55,98.472,8.18997586]
[1770002327270,1.76,98.55,98.494,8.18997586]
[1770002327472,1.76,98.55,98.464,9.1499]
[1770002327473,142.1044,98.623,98.518,142.255]
[1770002327675,142.1044,98.623,98.513,7.30997586]
[1770002327676,142.1133,98.617,98.514,142.2607]
[1770002327871,142.1181,98.613,98.508,149.57857586]
[1770002328074,425.8018,98.741,98.529,7.30997586]
[1770002328075,142.0928,98.631,98.529,7.30997586]
[1770002328271,142.0744,98.644,98.536,149.53837586]
[1770002328571,142.1402,98.598,98.509,7.30997586]
[1770002328767,142.0687,98.648,98.533,7.30997586]
[1770002328980,298.53361876,98.675,98.58,142.1643]
[1770002329181,142.0465,98.663,98.573,7.30997586]
[1770002329379,141.9873,98.704,98.589,149.28235811]
[1770002329576,141.9905,98.702,98.601,142.1353]
[1770002329880,142.0188,98.682,98.592,7.13025811]
[1770002330071,142.0188,98.682,98.567,142.183]
[1770002330072,142.0329,98.673,98.568,7.13025811]
[1770002330269,142.1035,98.624,98.536,7.13025811]
[1770002330471,142.1586,98.585,98.482,142.3065]
[1770002330676,142.0727,98.645,98.54,7.13025811]
[1770002330878,142.0564,98.656,98.548,142.2107]
[1770002331077,142.0708,98.646,98.546,7.13025811]
[1770002331277,142.0852,98.636,98.546,7.13025811]
[1770002331495,142.1439,98.596,98.488,142.2981]
[1770002331678,142.1014,98.625,98.517,149.20972849]
[1770002331983,142.0916,98.632,98.529,142.2391]
[1770002332179,142.1381,98.6,98.52,6.95322849]
[1770002332381,142.1234,98.61,98.493,6.95322849]
[1770002332382,142.1516,98.59,98.493,6.95322849]
[1770002332576,142.1516,98.59,98.465,142.3312]
[1770002332577,142.2132,98.548,98.445,142.3598]
[1770002332778,142.1963,98.559,98.454,6.95322849]
[1770002333082,142.1421,98.597,98.499,6.95322849]
[1770002333382,142.1472,98.593,98.499,6.95322849]
[1770002333579,142.1658,98.58,98.481,142.3083]
[1770002333776,142.1658,98.58,98.478,6.7730667]
[1770002334082,142.1664,98.58,98.48,142.3094]
[1770002334473,142.229,98.537,98.439,6.7730667]
[1770002334676,142.1882,98.565,98.46,142.3386]
[1770002334881,142.1887,98.565,98.462,142.335]
[1770002335082,404.28,98.579,98.482,142.3063]
[1770002335276,142.1577,98.586,98.478,142.3127]
[1770002335481,142.1992,98.557,98.452,142.3504]
[1770002335683,142.1714,98.577,98.477,142.3129]
[1770002336078,142.1844,98.567,98.469,142.3257]
[1770002336285,142.218,98.544,98.448,142.3559]
[1770002336474,142.218,98.544,98.446,142.3582]
[1770002336682,142.204,98.554,98.456,142.3443]
[1770002336974,142.2181,98.544,98.447,9.1514]
[1770002337178,142.2181,98.544,98.451,142.3517]
[1770002337377,142.2181,98.544,98.443,9.1518]
[1770002337578,32.46744304,98.55,98.422,142.3925]
[1770002337579,142.24,98.529,98.427,142.3858]
[1770002337973,142.204,98.554,98.451,142.3513]
[1770002337974,142.215,98.546,98.451,142.3513]
[1770002338174,142.215,98.546,98.427,142.3858]
[1770002338175,142.2945,98.491,98.395,142.4328]
[1770002338378,142.2872,98.496,98.388,149.25343753]
[1770002338580,142.2946,98.491,98.382,142.4516]
[1770002338782,142.327,98.469,98.364,6.81143753]
[1770002338974,426.7779,98.516,98.389,6.81143753]
[1770002338975,142.3147,98.477,98.389,6.81143753]
[1770002339178,142.395,98.422,98.329,6.88345069]
[1770002339380,142.395,98.422,98.29,142.5849]
[1770002339381,142.441,98.39,98.296,6.88345069]
[1770002339580,142.4582,98.378,98.278,142.6011]
[1770002339775,142.4582,98.378,98.26,142.6278]
[1770002339776,142.4435,98.388,98.284,8.27319387]
[1770002339977,142.3689,98.44,98.332,142.524]
[1770002340179,142.3878,98.427,98.324,142.5349]
[1770002340382,142.3915,98.424,98.339,8.27319387]
[1770002340583,142.3465,98.455,98.361,8.27319387]
[1770002340877,142.3465,98.455,98.328,142.5299]
[1770002340878,142.38,98.432,98.324,8.27319387]
[1770002341079,142.4435,98.388,98.286,142.5905]
[1770002341381,142.4699,98.37,98.284,8.27319387]
[1770002341581,142.3988,98.419,98.32,8.00142269]
[1770002341778,142.3988,98.419,98.319,142.5418]
[1770002341779,142.3567,98.448,98.348,142.5009]
[1770002341981,142.4024,98.417,98.319,142.5423]
[1770002342286,142.3941,98.422,98.321,8.00142269]
[1770002342476,142.41,98.411,98.321,8.00142269]
[1770002342780,142.41,98.411,98.282,142.596]
[1770002342781,142.3313,98.466,98.37,142.4687]
[1770002343086,142.3611,98.445,98.345,142.5052]
[1770002343280,142.3611,98.445,98.346,151.6638]
[1770002343281,151.5129,98.445,98.346,151.6638]
[1770002343492,151.5129,98.445,98.31,32.46744304]
[1770002343493,142.4634,98.374,98.272,142.6112]
[1770002343783,404.9,98.401,98.299,150.49130416]
[1770002343986,142.43,98.398,98.299,150.49130416]
[1770002344184,142.4426,98.389,98.299,142.5719]
[1770002344486,142.3311,98.466,98.361,7.91950416]
[1770002344687,142.3344,98.464,98.364,7.91950416]
[1770002344982,32.46744304,98.5,98.293,1.76898032]
[1770002344983,142.2378,98.531,98.422,7.91950416]
[1770002345178,142.2378,98.531,98.436,142.3726]
[1770002345379,142.2378,98.531,98.435,7.98343731]
[1770002345380,142.2326,98.534,98.439,7.98343731]
[1770002345578,142.2456,98.525,98.432,142.3791]
[1770002345783,142.1983,98.558,98.457,7.98343731]
[1770002345986,142.189,98.564,98.458,150.32473731]
[1770002346186,142.2147,98.546,98.437,142.3719]
[1770002346383,142.1727,98.576,98.474,142.3183]
[1770002346588,426.105,98.671,98.49,7.98343731]
[1770002346589,142.1873,98.565,98.49,7.98343731]
[1770002346779,142.13,98.605,98.496,7.98343731]
[1770002346985,142.13,98.605,98.473,142.3193]
[1770002346986,142.0713,98.646,98.543,7.98343731]
[1770002347184,142.102,98.625,98.545,7.84723305]
[1770002347381,142.0603,98.654,98.545,7.84723305]
[1770002347382,142.0956,98.629,98.545,7.84723305]
[1770002347584,142.085,98.636,98.545,7.84723305]
[1770002347884,142.1114,98.618,98.532,7.84698734]
[1770002348083,142.0728,98.645,98.539,7.84698734]
[1770002348284,141.9588,98.724,98.62,142.1071]
[1770002348485,141.9127,98.756,98.639,7.84698734]
[1770002348486,141.9416,98.736,98.639,7.84698734]
[1770002348679,141.9601,98.723,98.622,142.1042]
[1770002348884,141.9601,98.723,98.597,142.14]
[1770002348885,141.8885,98.773,98.665,142.0431]
[1770002349087,141.8885,98.773,98.654,149.90548734]
[1770002349088,141.917,98.753,98.654,7.84698734]
[1770002349287,141.9194,98.752,98.654,7.84698734]
[1770002349493,142.0124,98.687,98.623,7.77696107]
[1770002349684,141.9815,98.708,98.623,7.77696107]
[1770002349886,141.9704,98.716,98.601,7.77696107]
[1770002350087,142.0277,98.676,98.579,142.1663]
[1770002350286,141.9449,98.734,98.623,7.77696107]
[1770002350591,141.8518,98.799,98.693,142.0027]
[1770002350786,141.8391,98.807,98.705,7.77696107]
[1770002351089,141.8408,98.806,98.708,7.77696107]
[1770002351387,141.8905,98.772,98.667,142.0394]
[1770002351586,141.8806,98.779,98.695,7.80394634]
[1770002351787,141.8095,98.828,98.737,7.80394634]
[1770002351986,141.8363,98.809,98.737,7.80394634]
[1770002352288,141.7199,98.891,98.793,141.8584]
[1770002352592,141.7052,98.901,98.794,141.8574]
[1770002352793,32.46744304,98.94,98.792,7.80394634]
[1770002352794,141.6653,98.929,98.816,141.8258]
[1770002352984,141.6656,98.928,98.827,141.8096]
[1770002353188,141.6687,98.926,98.821,141.8184]
[1770002353390,141.6906,98.911,98.811,141.8326]
[1770002353693,141.7508,98.869,98.8,32.46744304]
[1770002353882,141.7109,98.897,98.801,7.75512142]
[1770002354083,141.7815,98.848,98.771,7.75512142]
[1770002354387,141.6925,98.91,98.801,7.75512142]
[1770002354588,141.7738,98.853,98.77,7.75512142]
[1770002354787,141.8403,98.807,98.708,7.75512142]
[1770002354983,141.7997,98.835,98.691,142.0048]
[1770002354984,141.7997,98.835,98.736,7.75512142]
[1770002355186,141.7736,98.853,98.759,7.81248542]
[1770002355384,141.7804,98.848,98.761,7.81248542]
[1770002355584,141.8023,98.833,98.761,7.81248542]
[1770002355889,141.8418,98.806,98.73,7.81248542]
[1770002356085,141.8554,98.796,98.73,7.81248542]
[1770002356285,141.8434,98.804,98.73,7.81248542]
[1770002356482,141.828,98.815,98.734,7.81248542]
[1770002356793,141.857,98.795,98.734,7.81248542]
[1770002356987,141.8137,98.825,98.722,7.81248542]
[1770002357187,141.784,98.846,98.743,7.8431065]
[1770002357388,141.742,98.875,98.775,7.8431065]
[1770002357593,141.7342,98.881,98.776,141.8833]
[1770002357794,141.7342,98.881,98.777,7.8431065]
[1770002357795,141.7494,98.87,98.777,7.8431065]
[1770002357990,141.7532,98.867,98.753,7.8431065]
[1770002358185,141.7248,98.887,98.781,7.8431065]
[1770002358388,141.7105,98.897,98.812,7.8431065]
[1770002358784,141.7253,98.887,98.812,7.8431065]
[1770002358996,141.7229,98.888,98.791,141.8608]
[1770002359189,32.46744304,98.93,98.791,141.8608]
[1770002359190,141.7532,98.867,98.791,7.8431065]
[1770002359492,141.654,98.937,98.791,7.8431065]
[1770002359493,141.7363,98.879,98.791,7.8431065]
[1770002359693,141.654,98.937,98.76,7.82582746]
[1770002359694,141.7547,98.866,98.76,7.82582746]
[1770002359892,141.8007,98.834,98.74,32.46744304]
[1770002360190,141.8146,98.825,98.731,7.82582746]
[1770002360396,406.06099992,98.878,98.757,7.82582746]
[1770002360397,141.7772,98.851,98.757,7.82582746]
[1770002360697,141.7878,98.843,98.762,7.82582746]
[1770002360887,141.7546,98.866,98.762,7.82582746]
[1770002361088,141.7528,98.868,98.783,7.82582746]
[1770002361294,141.751,98.869,98.783,7.82582746]
[1770002361592,32.46744304,98.91,98.783,7.82582746]
[1770002361593,141.7267,98.886,98.783,7.82582746]
[1770002361793,141.7559,98.865,98.783,7.82582746]
[1770002362090,141.7545,98.866,98.783,7.82582746]
[1770002362295,32.46744304,98.91,98.76,32.46744304]
[1770002362491,141.7941,98.839,98.748,7.86267768]
[1770002362688,141.7618,98.861,98.754,141.9151]
[1770002362887,141.7717,98.854,98.772,7.86267768]
[1770002363095,141.8073,98.83,98.741,7.86267768]
[1770002363297,141.8327,98.812,98.741,7.86267768]
[1770002363599,32.46744304,98.85,98.71,7.97871616]
[1770002363600,141.8492,98.8,98.71,7.97871616]
[1770002363792,30.41,98.87,98.675,7.97871616]
[1770002363793,141.8843,98.776,98.675,7.97871616]
[1770002363993,141.8843,98.776,98.679,7.97871616]
[1770002364395,32.46744304,98.81,98.679,7.97871616]
[1770002364396,141.8986,98.766,98.679,7.97871616]
[1770002364794,141.8662,98.789,98.684,149.99441616]
[1770002365001,141.8808,98.778,98.69,7.97871616]
[1770002365197,141.9094,98.758,98.655,8.07227027]
[1770002365402,32.46744304,98.81,98.65,32.46744304]
[1770002365403,141.8951,98.768,98.661,150.11997027]
[1770002365597,141.9503,98.73,98.63,8.07227027]
[1770002365898,141.9007,98.765,98.658,142.0529]
[1770002366104,141.8937,98.769,98.675,8.07227027]
[1770002366501,141.8893,98.772,98.675,8.07227027]
[1770002366793,141.8893,98.772,98.64,32.46744304]
[1770002366794,141.9038,98.762,98.676,8.07227027]
[1770002366994,141.887,98.774,98.676,8.07227027]
[1770002367200,141.9021,98.764,98.676,8.07227027]
[1770002367397,141.917,98.753,98.646,142.0693]
[1770002367602,141.917,98.753,98.644,8.1056154]
[1770002367603,141.9197,98.751,98.65,142.064]
[1770002367800,141.884,98.776,98.677,142.0246]
[1770002368205,141.9158,98.754,98.65,142.0647]
[1770002368500,32.46744304,98.79,98.652,8.1056154]
[1770002368699,141.9677,98.718,98.624,8.1056154]
[1770002368896,141.952,98.729,98.626,8.1056154]
[1770002369097,141.9681,98.718,98.626,8.1056154]
[1770002369303,141.9888,98.703,98.599,150.17298931]
[1770002369701,141.9888,98.703,98.6,8.03528931]
[1770002369894,141.9888,98.703,98.604,142.1307]
[1770002370404,141.8981,98.766,98.664,9.1313]
[1770002370603,141.9007,98.765,98.663,8.03528931]
[1770002370899,141.9484,98.731,98.633,8.03528931]
[1770002371305,141.9123,98.756,98.653,142.0602]
[1770002371505,141.8828,98.777,98.675,142.0278]
[1770002371703,141.9152,98.754,98.671,8.0528452]
[1770002371899,141.883,98.777,98.671,150.0859452]
[1770002372101,141.9235,98.749,98.649,8.0528452]
[1770002372299,141.8714,98.785,98.682,142.0176]
[1770002372505,141.8714,98.785,98.682,151.1473]
[1770002372705,141.8714,98.785,98.64,32.46744304]
[1770002372706,141.82,98.821,98.719,141.9654]
[1770002372902,392.63038259,98.851,98.754,141.9144]
[1770002373105,141.8076,98.829,98.737,141.9395]
[1770002373305,141.8222,98.819,98.726,8.0528452]
[1770002373506,9.1185,98.804,98.703,141.9873]
[1770002373707,150.9628,98.804,98.703,141.9873]
[1770002373902,392.63038259,98.851,98.763,141.9009]
[1770002374108,141.7989,98.835,98.738,8.00942823]
[1770002374304,141.8303,98.814,98.713,141.974]
[1770002374503,141.8717,98.785,98.692,142.003]
[1770002374708,141.8717,98.785,98.687,8.00942823]
[1770002374905,141.9497,98.73,98.656,8.00942823]
[1770002375107,141.9497,98.73,98.626,8.00942823]
[1770002375303,32.46744304,98.74,98.633,142.0879]
[1770002375610,32.46744304,98.74,98.626,8.00942823]
[1770002375611,141.972,98.715,98.626,8.00942823]
[1770002375808,141.9842,98.707,98.597,150.16444615]
[1770002376002,142.0066,98.691,98.605,8.02414615]
[1770002376201,141.9887,98.703,98.605,8.02414615]
[1770002376399,142.0258,98.678,98.605,8.02414615]
[1770002376606,32.46744304,98.71,98.591,142.1492]
[1770002376607,142.0078,98.69,98.591,142.1492]
[1770002376910,142.0026,98.694,98.591,142.1492]
[1770002377304,142.0163,98.684,98.59,8.02414615]
[1770002377509,142.0268,98.677,98.59,8.02414615]
[1770002377710,142.0132,98.686,98.59,8.02414615]
[1770002378211,142.0179,98.683,98.59,8.02414615]
[1770002378508,142.0422,98.666,98.568,8.09471774]
[1770002379211,9.1313,98.666,98.568,8.09471774]
[1770002379407,9.1313,98.666,98.569,150.29643486]
[1770002379712,151.1418,98.687,98.588,8.11583486]
[1770002380012,142.0419,98.666,98.565,142.1872]
[1770002380308,142.0115,98.687,98.578,8.11583486]
[1770002380511,142.0172,98.684,98.581,8.11583486]
[1770002380707,151.1386,98.689,98.585,8.11583486]
[1770002380912,142.0253,98.678,98.585,8.11583486]
[1770002381114,151.1383,98.689,98.587,8.11583486]